{"text_format":"3","workbook":"xlsx","n_sheets":2,"sheets":["list","data"],"not_rendered":{"external_links":1},"read":"whole","date_system":"1900"}

{"sheet":"list","index":0,"n_rows":10,"n_cols":17,"rows_kept":10}
["№","СНИЛС","Фамлия","Имя","Отчество","Пол","Дата рождения","Участник с ОВЗ","Класс","Класс участия","Балл","Макс. Балл","Статус","Призер МЭ прошлого года","Учитель","Место работы учителя","Направление, вид практики  по технологии"]
[1,2,3,4,5,6,7,8,9,10,11,12,13,14,15,16,17]
[1,null,{"$f":"'[1]Список учащихся (олимпиада)'!C95","v":"Габдуллина"},{"$f":"'[1]Список учащихся (олимпиада)'!D95","v":"Адиля"},{"$f":"'[1]Список учащихся (олимпиада)'!E95","v":"Рафиковна"},{"$f":"'[1]Список учащихся (олимпиада)'!F95","v":"Ж"},null,{"$f":"'[1]Список учащихся (олимпиада)'!H95","v":"нет"},{"$f":"'[1]Список учащихся (олимпиада)'!I95","v":10},"10","9","50","участник",null,"Шкудов Виталий Николаевич","МБОУ Среднедевятовская СОШ"]
[2,null,{"$f":"'[1]Список учащихся (олимпиада)'!C91","v":"Алексеева"},{"$f":"'[1]Список учащихся (олимпиада)'!D91","v":"Диана"},{"$f":"'[1]Список учащихся (олимпиада)'!E91","v":"Александровна"},{"$f":"'[1]Список учащихся (олимпиада)'!F91","v":"Ж"},null,{"$f":"'[1]Список учащихся (олимпиада)'!H91","v":"нет"},{"$f":"'[1]Список учащихся (олимпиада)'!I91","v":10},10,10,50,"участник",null,{"$f":"O3","v":"Шкудов Виталий Николаевич"},"МБОУ Среднедевятовская СОШ"]
[3,null,{"$f":"'[1]Список учащихся (олимпиада)'!C81","v":"Роднина"},{"$f":"'[1]Список учащихся (олимпиада)'!D81","v":"Арина"},{"$f":"'[1]Список учащихся (олимпиада)'!E81","v":"Владимировна"},{"$f":"'[1]Список учащихся (олимпиада)'!F81","v":"Ж"},null,{"$f":"'[1]Список учащихся (олимпиада)'!H81","v":"нет"},{"$f":"'[1]Список учащихся (олимпиада)'!I81","v":9},9,4,50,"участник",null,{"$f":"O4","v":"Шкудов Виталий Николаевич"},"МБОУ Среднедевятовская СОШ"]
[4]
[5]
[6]
[7]
[8]

{"sheet":"data","index":1,"n_rows":25,"n_cols":3,"rows_kept":25,"hidden":true}
[]
["Техника, технология и техническое творчество .  Ручная обработка древесины"]
["Техника, технология и техническое творчество .  Ручная обработка металла"]
["Техника, технология и техническое творчество .  Механическая обработка древесины"]
["Техника, технология и техническое творчество .  Механическая обработка металла"]
["Техника, технология и техническое творчество .  Электротехника"]
["Техника, технология и техническое творчество .  Робототехника"]
["Техника, технология и техническое творчество .  3d - моделирование и печать"]
["Техника, технология и техническое творчество .  Обработка материалов на лазерно-гравировальной машине"]
["Техника, технология и техническое творчество .  Промышленный дизайн"]
["Культура дома, дизайн и технологии .  Обработка швейного изделия или узла + моделирование швейных изделий"]
["Культура дома, дизайн и технологии .  Обработка швейного изделия или узла + моделирование швейных изделий с использованием графических редакторов"]
["Культура дома, дизайн и технологии .  Обработка швейного изделия или узла на швейно-вышивальном оборудовании + моделирование швейных изделий"]
["Культура дома, дизайн и технологии .  Обработка швейного изделия или узла на швейно-вышивальном оборудовании + моделирование швейных изделий с использованием графических редакторов"]
["Культура дома, дизайн и технологии .  Робототехника"]
["Культура дома, дизайн и технологии .  3d - моделирование и печать"]
["Культура дома, дизайн и технологии .  Обработка материалов на лазерно-гравировальной машине"]
["Культура дома, дизайн и технологии .  Промышленный дизайн"]
["Роботехника .  "]
["Информационная безопасность ."]
[]
[]
["участник"]
["призер",null,"да"]
["победитель"]